fUSD/lending_fUSD_20250814
["ID","MTS","AMOUNT","RATE_DAILY","PERIOD"]
[379227397,1755198640037,-170.61855441,0.00025766,4]
[379227399,1755198640047,-415.30966174,0.00025766,4]
[379227401,1755198640056,-245.74346372,0.00025766,4]
[379227403,1755198640066,-150.0,0.00025767,4]
[379227405,1755198640075,-150.0,0.00025769,4]
[379227407,1755198640084,-150.0,0.00025773,4]
[379227409,1755198640093,-150.0,0.00025773,4]
[379227411,1755198640102,-150.0,0.00025779,4]
[379227413,1755198640112,-150.0,0.00025792,4]
[379227415,1755198640121,-170.61855441,0.00025794,4]
[379227417,1755198640131,-415.30966174,0.00025794,4]
[379227419,1755198640141,-245.74346372,0.00025794,4]
[379227421,1755198640151,-150.0,0.00025799,4]
[379227423,1755198640160,-150.0,0.00025802,4]
[379227425,1755198640169,-150.0,0.00025806,4]
[379227427,1755198640178,-150.0,0.00025806,4]
[379227429,1755198640187,-150.0,0.00025806,4]
[379227431,1755198640197,-150.0,0.0002581,4]
[379227433,1755198640206,-150.0,0.00025821,4]
[379227435,1755198640215,-170.61855441,0.00025822,4]
[379227437,1755198640224,-415.30966174,0.00025822,4]
[379227439,1755198640234,-245.74346372,0.00025822,4]
[379227441,1755198640243,-150.0,0.00025824,4]
[379227443,1755198640252,-150.0,0.0002583,4]
[379227445,1755198640262,-434.15934134,0.00025837,2]
[379227447,1755198640271,-150.0,0.00025838,4]
[379227449,1755198640281,-150.0,0.00025842,4]
[379227451,1755198640291,-150.0,0.00025845,4]
[379227453,1755198640300,-170.61855441,0.00025849,4]
[379227455,1755198640309,-415.30966174,0.00025849,4]
[379227457,1755198640319,-245.74346372,0.00025849,4]
[379227459,1755198640328,-150.0,0.00025849,4]
[379227461,1755198640338,-150.0,0.00025849,4]
[379227463,1755198640347,-150.0,0.00025855,4]
[379227465,1755198640356,-150.0,0.00025856,4]
[379227467,1755198640366,-150.0,0.00025859,4]
[379227469,1755198640375,-150.0,0.00025871,4]
[379227471,1755198640385,-150.0,0.00025872,4]
[379227473,1755198640394,-150.0,0.00025874,4]
[379227475,1755198640403,-170.61855441,0.00025877,4]
[379227477,1755198640413,-415.30966174,0.00025877,4]
[379227479,1755198640423,-245.74346372,0.00025877,4]
[379227481,1755198640433,-150.0,0.00025884,4]
[379227484,1755198640443,-1730.806,0.00025885,2]
[379227486,1755198640452,-4149.0,0.00025885,2]
[379227488,1755198640462,-6086.0,0.00025885,2]
[379227490,1755198640471,-21478.0,0.00025885,2]
[379227492,1755198640481,-150.0,0.00025887,4]
[379227494,1755198640491,-150.0,0.00025889,4]
[379227496,1755198640500,-451.0,0.0002589,7]
[379227498,1755198640509,-150.0,0.00025896,4]
[379227500,1755198640518,-150.0,0.00025896,4]
[379227502,1755198640529,-150.0,0.000259,4]
[379227504,1755198640538,-150.0,0.00025904,4]
[379227506,1755198640547,-150.0,0.00025904,4]
[379227508,1755198640557,-170.61855441,0.00025905,4]
[379227510,1755198640566,-415.30966174,0.00025905,4]
[379227512,1755198640576,-245.74346372,0.00025905,4]
[379227514,1755198640585,-150.0,0.00025906,4]
[379227516,1755198640594,-150.0,0.00025916,4]
[379227518,1755198640604,-150.0,0.00025921,4]
[379227520,1755198640613,-150.0,0.00025923,4]
[379227522,1755198640623,-150.0,0.00025924,4]
[379227524,1755198640632,-158.23,0.00025928,2]
[379227526,1755198640642,-2282.0,0.00025931,7]
[379227528,1755198640651,-170.61855441,0.00025932,4]
[379227530,1755198640661,-415.30966174,0.00025932,4]
[379227532,1755198640670,-245.74346372,0.00025932,4]
[379227534,1755198640679,-150.0,0.00025936,4]
[379227536,1755198640690,-150.0,0.00025938,4]
[379227538,1755198640700,-150.0,0.00025944,4]
[379227540,1755198640710,-3183.75812453,0.00025951,2]
[379227542,1755198640719,-150.0,0.00025951,4]
[379227544,1755198640728,-150.0,0.00025952,4]
[379227546,1755198640737,-150.0,0.00025953,4]
[379227548,1755198640746,-170.61855441,0.0002596,4]
[379227550,1755198640756,-415.30966174,0.0002596,4]
[379227552,1755198640765,-245.74346372,0.0002596,4]
[379227554,1755198640777,-150.0,0.00025962,4]
[379227556,1755198640786,-150.0,0.00025969,4]
[379227558,1755198640795,-150.0,0.0002597,4]
[379227560,1755198640804,-150.0,0.00025973,4]
[379227562,1755198640814,-150.0,0.00025976,4]
[379227564,1755198640823,-150.0,0.00025985,4]
[379227566,1755198640832,-170.61855441,0.00025988,4]
[379227568,1755198640841,-415.30966174,0.00025988,4]
[379227570,1755198640851,-245.74346372,0.00025988,4]
[379227572,1755198640860,-150.0,0.00026001,4]
[379227573,1755198640869,-150.0,0.00026001,4]
[379227575,1755198640878,-150.0,0.00026001,4]
[379227576,1755198640887,-150.0,0.00026001,4]
[379227578,1755198640896,-150.0,0.00026001,4]
[379227580,1755198640904,-150.0,0.00026001,4]
[379227582,1755198640914,-150.0,0.00026001,4]
[379227584,1755198640926,-150.0,0.00026001,4]
[379227586,1755198640936,-540.51361597,0.00026014,9]
[379227588,1755198640945,-170.61855441,0.00026015,4]
[379227590,1755198640954,-415.30966174,0.00026015,4]
[379227592,1755198640963,-245.74346372,0.00026015,4]
[379227594,1755198640975,-150.0,0.00026017,4]
[379227596,1755198640985,-3000.0,0.00026026,2]
[379227598,1755198640994,-600.0,0.00026026,2]
[379227600,1755198641004,-160.0,0.00026026,2]
[379227602,1755198641013,-300.0,0.00026026,2]
[379227603,1755198641024,-1000.0,0.00026026,2]
[379227604,1755198641033,-828.78630578,0.00026026,2]
[379227605,1755198641042,-277.35679052,0.00026026,2]
[379227606,1755198641051,-151.0,0.00026026,2]
[379227607,1755198641060,-150.0,0.00026027,4]
[379227608,1755198641069,-150.0,0.0002603,4]
[379227609,1755198641080,-150.0,0.00026033,4]
[379227610,1755198641089,-150.0,0.00026034,4]
[379227611,1755198641099,-150.0,0.0002604,4]
[379227612,1755198641109,-170.61855441,0.00026043,4]
[379227613,1755198641119,-415.30966174,0.00026043,4]
[379227614,1755198641128,-245.74346372,0.00026043,4]
[379227615,1755198641137,-150.0,0.0002605,4]
[379227616,1755198641146,-150.0,0.0002605,4]
[379227617,1755198641156,-415.0,0.00026051,2]
[379227618,1755198641166,-184.44,0.00026051,2]
[379227619,1755198641175,-150.0,0.00026052,4]
[379227620,1755198641184,-150.0,0.00026058,4]
[379227621,1755198641194,-150.0,0.00026065,4]
[379227622,1755198641203,-150.0,0.00026067,4]
[379227623,1755198641212,-170.61855441,0.0002607,4]
[379227624,1755198641222,-415.30966174,0.0002607,4]
[379227625,1755198641231,-245.74346372,0.0002607,4]
[379227626,1755198641244,-150.0,0.00026079,4]
[379227627,1755198641254,-150.0,0.0002608,4]
[379227628,1755198641264,-150.0,0.00026082,4]
[379227629,1755198641275,-150.0,0.00026087,4]
[379227630,1755198641284,-150.0,0.00026097,4]
[379227631,1755198641294,-170.61855441,0.00026098,4]
[379227632,1755198641304,-415.30966174,0.00026098,4]
[379227633,1755198641314,-245.74346372,0.00026098,4]
[379227634,1755198641323,-150.0,0.00026099,4]
[379227635,1755198641333,-150.0,0.00026099,4]
[379227636,1755198641342,-150.0,0.00026103,4]
[379227637,1755198641351,-150.0,0.00026107,4]
[379227638,1755198641360,-150.0,0.00026107,4]
[379227639,1755198641369,-5888.0,0.00026108,7]
[379227640,1755198641378,-458.13769775,0.00026108,7]
[379227641,1755198641387,-211.86673127,0.00026108,7]
[379227642,1755198641396,-150.0,0.00026114,4]
[379227643,1755198641406,-150.0,0.00026115,4]
[379227644,1755198641416,-150.0,0.00026119,4]
[379227645,1755198641427,-170.61855441,0.00026126,4]
[379227646,1755198641436,-415.30966174,0.00026126,4]
[379227647,1755198641445,-245.74346372,0.00026126,4]
[379227648,1755198641454,-150.0,0.00026129,4]
[379227649,1755198641463,-150.0,0.0002613,4]
[379227650,1755198641472,-150.0,0.00026132,4]
[379227651,1755198641482,-3183.75812453,0.00026143,2]
[379227652,1755198641491,-150.0,0.00026144,4]
[379227653,1755198641501,-150.0,0.00026146,4]
[379227654,1755198641510,-150.0,0.00026148,4]
[379227655,1755198641519,-170.61855441,0.00026153,4]
[379227656,1755198641528,-415.30966174,0.00026153,4]
[379227657,1755198641537,-245.74346372,0.00026153,4]
[379227658,1755198641547,-150.0,0.00026153,4]
[379227659,1755198641558,-150.0,0.00026153,4]
[379227660,1755198641570,-150.0,0.00026158,4]
[379227661,1755198641579,-150.0,0.0002616,4]
[379227662,1755198641588,-150.0,0.00026164,4]
[379227663,1755198641598,-150.0,0.00026172,4]
[379227664,1755198641608,-150.0,0.00026178,4]
[379227665,1755198641617,-170.61855441,0.00026181,4]
[379227666,1755198641626,-415.30966174,0.00026181,4]
[379227667,1755198641635,-245.74346372,0.00026181,4]
[379227668,1755198641644,-150.0,0.00026182,4]
[379227669,1755198641654,-385.52,0.0002619,7]
[379227670,1755198641663,-2282.0,0.00026192,2]
[379227671,1755198641672,-150.0,0.00026192,4]
[379227672,1755198641682,-150.0,0.00026197,4]
[379227673,1755198641692,-150.0,0.00026197,4]
[379227674,1755198641701,-150.0,0.00026197,4]
[379227675,1755198641710,-951.0,0.000262,2]
[379227676,1755198641719,-150.0,0.00026201,4]
[379227677,1755198641728,-150.0,0.00026204,4]
[379227678,1755198641737,-170.61855441,0.00026209,4]
[379227679,1755198641746,-415.30966174,0.00026209,4]
[379227680,1755198641755,-245.74346372,0.00026209,4]
[379227681,1755198641765,-150.0,0.00026211,4]
[379227682,1755198641775,-150.0,0.00026224,4]
[379227683,1755198641784,-150.0,0.00026229,4]
[379227684,1755198641793,-150.0,0.00026229,4]
[379227685,1755198641802,-150.0,0.00026234,4]
[379227686,1755198641811,-150.0,0.00026236,4]
[379227687,1755198641820,-170.61855441,0.00026236,4]
[379227688,1755198641829,-415.30966174,0.00026236,4]
[379227689,1755198641838,-245.74346372,0.00026236,4]
[379227690,1755198641847,-150.0,0.00026243,4]
[379227691,1755198641856,-150.0,0.00026246,4]
[379227692,1755198641865,-150.0,0.00026255,4]
[379227693,1755198641875,-150.0,0.00026256,4]
[379227694,1755198641884,-150.0,0.00026258,4]
[379227695,1755198641893,-150.0,0.00026262,4]
[379227696,1755198641904,-170.61855441,0.00026264,4]
[379227697,1755198641913,-415.30966174,0.00026264,4]
[379227698,1755198641922,-245.74346372,0.00026264,4]
[379227699,1755198641934,-150.0,0.00026275,4]
[379227700,1755198641943,-150.0,0.00026275,4]
[379227701,1755198641953,-150.0,0.00026275,4]
[379227702,1755198641962,-150.0,0.00026275,4]
[379227703,1755198641972,-150.0,0.00026275,4]
[379227704,1755198641981,-150.0,0.00026285,4]
[379227705,1755198641991,-150.0,0.00026286,4]
[379227706,1755198642001,-150.0,0.00026288,4]
[379227707,1755198642010,-170.61855441,0.00026292,4]
[379227708,1755198642020,-415.30966174,0.00026292,4]
[379227709,1755198642030,-245.74346372,0.00026292,4]
[379227710,1755198642039,-150.0,0.00026295,4]
[379227711,1755198642048,-150.0,0.00026295,4]
[379227712,1755198642058,-415.0,0.00026302,7]
[379227713,1755198642067,-150.0,0.00026305,4]
[379227714,1755198642076,-150.0,0.00026307,4]
[379227715,1755198642085,-150.0,0.00026314,4]
[379227716,1755198642094,-150.0,0.00026315,4]
[379227717,1755198642103,-150.0,0.00026317,4]
[379227718,1755198642112,-150.0,0.00026317,4]
[379227719,1755198642121,-170.61855441,0.00026319,4]
[379227720,1755198642130,-415.30966174,0.00026319,4]
[379227721,1755198642139,-245.74346372,0.00026319,4]
[379227722,1755198642148,-150.0,0.0002632,4]
[379227723,1755198642157,-150.0,0.00026327,4]
[379227724,1755198642167,-415.0,0.00026331,2]
[379227725,1755198642176,-3183.75812453,0.00026335,2]
[379227726,1755198642185,-150.0,0.00026337,4]
[379227727,1755198642194,-150.0,0.00026339,4]
[379227728,1755198642202,-150.0,0.00026343,4]
[379227729,1755198642211,-150.0,0.00026343,4]
[379227730,1755198642220,-170.61855441,0.00026347,4]
[379227732,1755198642230,-415.30966174,0.00026347,4]
[379227733,1755198642239,-245.74346372,0.00026347,4]
[379227735,1755198642248,-150.0,0.00026351,4]
[379227737,1755198642258,-150.0,0.00026353,4]
[379227739,1755198642267,-150.0,0.00026356,4]
[379227740,1755198642277,-150.0,0.0002636,4]
[379227742,1755198642286,-150.0,0.00026372,4]
[379227743,1755198642295,-150.0,0.00026372,4]
[379227744,1755198642304,-170.61855441,0.00026375,4]
[379227745,1755198642313,-415.30966174,0.00026375,4]
[379227746,1755198642323,-245.74346372,0.00026375,4]
[379227747,1755198642332,-150.0,0.00026383,4]
[379227748,1755198642341,-150.0,0.00026389,4]
[379227749,1755198642350,-415.0,0.00026392,2]
[379227750,1755198642359,-150.0,0.00026392,4]
[379227751,1755198642368,-150.0,0.00026392,4]
[379227752,1755198642378,-150.0,0.00026392,4]
[379227753,1755198642387,-150.0,0.00026401,4]
[379227754,1755198642396,-170.61855441,0.00026402,4]
[379227755,1755198642406,-415.30966174,0.00026402,4]
[379227756,1755198642415,-245.74346372,0.00026402,4]
[379227757,1755198642424,-150.0,0.00026404,4]
[379227758,1755198642433,-150.0,0.00026407,4]
[379227759,1755198642443,-150.0,0.00026415,4]
[379227760,1755198642452,-596.14,0.00026416,2]
[379227761,1755198642462,-468.3,0.0002642,2]
[379227762,1755198642473,-150.0,0.00026425,4]
[379227763,1755198642482,-150.0,0.00026429,4]
[379227764,1755198642492,-170.61855441,0.0002643,4]
[379227765,1755198642502,-415.30966174,0.0002643,4]
[379227766,1755198642511,-245.74346372,0.0002643,4]
[379227767,1755198642521,-150.0,0.00026431,4]
[379227768,1755198642531,-150.0,0.00026436,4]
[379227769,1755198642541,-150.0,0.0002644,4]
[379227770,1755198642550,-150.0,0.00026441,4]
[379227771,1755198642559,-150.0,0.00026447,4]
[379227772,1755198642569,-1313.3,0.00026456,2]
[379227773,1755198642579,-170.61855441,0.00026458,4]
[379227774,1755198642589,-415.30966174,0.00026458,4]
[379227775,1755198642598,-245.74346372,0.00026458,4]
[379227776,1755198642607,-150.0,0.00026458,4]
[379227777,1755198642617,-150.0,0.00026458,4]
[379227778,1755198642626,-150.0,0.00026458,4]
[379227779,1755198642635,-70.28323219,0.00026458,4]
[379227780,1755198642711,-79.71676781,0.00026458,4]
[379227781,1755198642721,-150.0,0.00026468,4]
[379227782,1755198643026,-150.0,0.00026471,4]
[379227783,1755198643036,-150.0,0.00026479,4]
[379227784,1755198643046,-170.61855441,0.00026485,4]
[379227785,1755198643056,-415.30966174,0.00026485,4]
[379227786,1755198643065,-65.55501604,0.00026485,4]
[379227787,1755198643137,-180.18844768,0.00026485,4]
[379227788,1755198643146,-150.0,0.00026486,4]
[379227789,1755198643156,-150.0,0.0002649,4]
[379227790,1755198643165,-150.0,0.0002649,4]
[379227791,1755198643175,-150.0,0.00026492,4]
[379227792,1755198643184,-150.0,0.000265,4]
[379227793,1755198643193,-150.0,0.00026508,4]
[379227794,1755198643203,-150.0,0.0002651,4]
[379227795,1755198643213,-150.0,0.00026511,4]
[379227796,1755198643223,-170.61855441,0.00026513,4]
[379227797,1755198643232,-415.30966174,0.00026513,4]
[379227798,1755198643242,-245.74346372,0.00026513,4]
[379227799,1755198643251,-150.0,0.00026515,4]
[379227800,1755198643261,-150.0,0.00026523,4]
[379227801,1755198643271,-3183.75812453,0.00026528,2]
[379227802,1755198643282,-150.0,0.00026528,4]
[379227803,1755198643293,-150.0,0.00026528,4]
[379227804,1755198643302,-150.0,0.00026533,4]
[379227805,1755198643312,-150.0,0.00026539,4]
[379227806,1755198643321,-170.61855441,0.0002654,4]
[379227807,1755198643330,-415.30966174,0.0002654,4]
[379227808,1755198643339,-245.74346372,0.0002654,4]
[379227809,1755198643349,-150.0,0.00026542,4]
[379227810,1755198643359,-150.0,0.00026543,4]
[379227811,1755198643368,-150.0,0.00026544,4]
[379227812,1755198643377,-150.0,0.00026549,4]
[379227813,1755198643387,-150.0,0.00026549,4]
[379227814,1755198643396,-150.0,0.00026555,4]
[379227815,1755198643406,-150.0,0.00026559,4]
[379227816,1755198643415,-150.0,0.00026564,2]
[379227817,1755198643424,-150.0,0.00026565,4]
[379227818,1755198643434,-170.61855441,0.00026568,4]
[379227819,1755198643443,-415.30966174,0.00026568,4]
[379227820,1755198643453,-245.74346372,0.00026568,4]
[379227821,1755198643463,-150.0,0.00026572,4]
[379227822,1755198643472,-600.0,0.00026574,2]
[379227823,1755198643482,-151.0,0.00026574,2]
[379227824,1755198643491,-150.0,0.00026574,4]
[379227825,1755198643500,-150.0,0.00026588,4]
[379227826,1755198643509,-150.0,0.00026588,4]
[379227827,1755198643518,-150.0,0.00026588,4]
[379227828,1755198643528,-150.99,0.00026591,2]
[379227829,1755198643538,-9999.99,0.00026591,2]
[379227830,1755198643547,-294.26,0.00026591,2]
[379227831,1755198643557,-12153.09,0.00026591,10]
[379227832,1755198643566,-150.99,0.00026591,2]
[379227833,1755198643576,-289.37,0.00026591,2]
[379227834,1755198643585,-1315.19,0.00026591,2]
[379227835,1755198643595,-341.53,0.00026591,2]
[379227836,1755198643604,-150.0,0.00026595,4]
[379227837,1755198643614,-170.61855441,0.00026596,4]
[379227838,1755198643623,-415.30966174,0.00026596,4]
[379227839,1755198643632,-245.74346372,0.00026596,4]
[379227840,1755198643642,-150.0,0.00026597,4]
[379227841,1755198643652,-150.0,0.000266,4]
[379227842,1755198643661,-415.0,0.00026602,2]
[379227843,1755198643670,-151.0,0.00026603,3]
[379227844,1755198643679,-151.0,0.00026603,3]
[379227845,1755198643689,-1217.0,0.00026603,3]
[379227846,1755198643698,-151.0,0.00026603,3]
[379227847,1755198643707,-1217.0,0.00026603,3]
[379227848,1755198643716,-151.0,0.00026603,3]
[379227849,1755198643726,-151.0,0.00026603,3]
[379227850,1755198643735,-151.0,0.00026603,3]
[379227851,1755198643745,-151.0,0.00026603,3]
[379227852,1755198643755,-1217.0,0.00026603,3]
[379227853,1755198643764,-151.0,0.00026603,3]
[379227854,1755198643776,-1217.0,0.00026603,3]
[379227855,1755198643785,-1217.0,0.00026603,3]
[379227856,1755198643796,-1217.0,0.00026603,3]
[379227857,1755198643806,-1217.0,0.00026603,3]
[379227858,1755198643816,-1217.0,0.00026603,3]
[379227859,1755198643826,-1217.0,0.00026603,3]
[379227860,1755198643835,-1217.0,0.00026603,3]
[379227861,1755198643845,-764.34977557,0.00026603,3]
[379227862,1755198643854,-1348.6495034,0.00026603,3]
[379227863,1755198643863,-1217.0,0.00026603,3]
[379227864,1755198643873,-1217.0,0.00026603,3]
[379227865,1755198643882,-1217.0,0.00026603,3]
[379227866,1755198643892,-150.0,0.00026606,4]
[379227867,1755198643902,-150.0,0.0002661,4]
[379227868,1755198643911,-150.0,0.0002662,4]
[379227869,1755198643920,-170.61855441,0.00026623,4]
[379227870,1755198643933,-415.30966174,0.00026623,4]
[379227871,1755198643942,-245.74346372,0.00026623,4]
[379227872,1755198643951,-167.79431171,0.00026626,2]
[379227873,1755198643961,-150.0,0.00026627,4]
[379227874,1755198643971,-150.0,0.00026629,4]
[379227875,1755198643982,-150.0,0.00026629,4]
[379227876,1755198643991,-150.0,0.00026637,4]
[379227877,1755198644003,-150.0,0.00026638,4]
[379227878,1755198644014,-150.0,0.00026647,4]
[379227879,1755198644025,-170.61855441,0.00026651,4]
[379227880,1755198644034,-415.30966174,0.00026651,4]
[379227881,1755198644044,-245.74346372,0.00026651,4]
[379227882,1755198644054,-150.0,0.00026653,4]
[379227883,1755198644064,-150.0,0.00026657,4]
[379227884,1755198644073,-150.0,0.0002666,4]
[379227885,1755198644083,-150.0,0.00026661,4]
[379227886,1755198644092,-150.0,0.00026666,4]
[379227887,1755198644102,-150.0,0.0002667,4]
[379227888,1755198644112,-159.74,0.00026676,2]
[379227889,1755198644121,-170.61855441,0.00026679,4]
[379227890,1755198644131,-415.30966174,0.00026679,4]
[379227891,1755198644141,-245.74346372,0.00026679,4]
[379227892,1755198644150,-150.0,0.00026686,4]
[379227893,1755198644159,-150.0,0.00026686,4]
[379227894,1755198644169,-150.0,0.00026686,4]
[379227895,1755198644179,-150.0,0.00026686,4]
[379227896,1755198644188,-150.0,0.00026694,4]
[379227897,1755198644197,-150.0,0.00026699,4]
[379227898,1755198644207,-150.0,0.00026702,4]
[379227899,1755198644216,-150.0,0.00026705,4]
[379227900,1755198644226,-170.61855441,0.00026706,4]
[379227901,1755198644235,-415.30966174,0.00026706,4]
[379227902,1755198644244,-245.74346372,0.00026706,4]
[379227903,1755198644254,-150.0,0.00026711,4]
[379227904,1755198644263,-160.0,0.00026714,2]
[379227905,1755198644272,-150.0,0.00026714,4]
[379227906,1755198644282,-150.0,0.00026718,4]
[379227907,1755198644292,-3183.75812453,0.0002672,2]
[379227908,1755198644302,-150.0,0.00026726,4]
[379227909,1755198644311,-150.0,0.00026733,4]
[379227910,1755198644321,-170.61855441,0.00026734,4]
[379227911,1755198644330,-415.30966174,0.00026734,4]
[379227912,1755198644340,-245.74346372,0.00026734,4]
[379227913,1755198644350,-150.0,0.00026734,4]
[379227914,1755198644359,-150.0,0.00026738,4]
[379227915,1755198644368,-150.0,0.00026738,4]
[379227916,1755198644378,-150.0,0.00026743,4]
[379227917,1755198644387,-150.0,0.00026744,4]
[379227918,1755198644396,-150.0,0.0002675,4]
[379227919,1755198644406,-150.0,0.00026751,4]
[379227920,1755198644415,-150.0,0.00026758,4]
[379227921,1755198644424,-170.61855441,0.00026762,4]
[379227922,1755198644434,-415.30966174,0.00026762,4]
[379227923,1755198644443,-245.74346372,0.00026762,4]
[379227924,1755198644453,-150.0,0.00026762,4]
[379227925,1755198644463,-150.0,0.00026762,4]
[379227926,1755198644472,-150.0,0.00026765,4]
[379227927,1755198644482,-150.0,0.00026771,4]
[379227928,1755198644492,-415.0,0.00026772,2]
[379227929,1755198644501,-1500.0,0.00026775,2]
[379227930,1755198644510,-2500.0,0.00026775,2]
[379227931,1755198644520,-1000.0,0.00026775,2]
[379227932,1755198644530,-9940.449392,0.00026781,2]
[379227933,1755198644540,-150.0,0.00026783,4]
[379227934,1755198644550,-150.0,0.00026783,4]
[379227935,1755198644560,-150.0,0.00026783,4]
[379227936,1755198644569,-2500.0,0.00026785,2]
[379227937,1755198644579,-2500.0,0.00026785,2]
[379227938,1755198644588,-153.86329635,0.00026787,2]
[379227939,1755198644597,-170.61855441,0.00026789,4]
[379227940,1755198644607,-415.30966174,0.00026789,4]
[379227941,1755198644616,-245.74346372,0.00026789,4]
[379227942,1755198644626,-362.69838202,0.0002679,2]
[379227943,1755198644635,-150.0,0.0002679,4]
[379227944,1755198644645,-481.19765413,0.00026792,2]
[379227945,1755198644654,-756.44377183,0.00026794,2]
[379227946,1755198644665,-166.66,0.00026796,2]
[379227947,1755198644674,-150.0,0.00026797,4]
[379227948,1755198644684,-241.68208552,0.00026797,2]
[379227949,1755198644693,-481.19765413,0.00026798,2]
[379227950,1755198644702,-150.0,0.000268,4]
[379227951,1755198644712,-150.0,0.00026802,4]
[379227952,1755198644722,-877.68146115,0.00026803,2]
[379227953,1755198644731,-201.56752728,0.00026806,2]
[379227954,1755198644740,-5000.0,0.00026808,4]
[379227955,1755198644750,-201.56752728,0.00026809,2]
[379227956,1755198644759,-150.0,0.00026812,4]
[379227957,1755198644770,-481.19765413,0.00026815,2]
[379227958,1755198644780,-150.0,0.00026816,4]
[379227959,1755198644790,-170.61855441,0.00026817,4]
[379227960,1755198644799,-415.30966174,0.00026817,4]
[379227961,1755198644808,-245.74346372,0.00026817,4]
[379227962,1755198644818,-201.56752728,0.0002682,2]
[379227963,1755198644827,-150.0,0.00026822,4]
[379227964,1755198644837,-150.0,0.00026822,4]
[379227965,1755198644847,-150.0,0.00026822,4]
[379227966,1755198644856,-150.0,0.00026822,4]
[379227967,1755198644865,-150.0,0.00026822,4]
[379227968,1755198644875,-150.0,0.00026828,4]
[379227969,1755198644884,-10564.3598093,0.00026828,2]
[379227970,1755198644894,-150.0,0.00026829,4]
[379227971,1755198644904,-362.69838202,0.0002683,2]
[379227972,1755198644913,-481.19765413,0.00026831,2]
[379227973,1755198644923,-877.68146115,0.00026831,2]
[379227974,1755198644940,-756.44377183,0.00026831,2]
[379227975,1755198644950,-150.0,0.00026832,4]
[379227976,1755198644960,-13336.7965936,0.00026835,2]
[379227977,1755198644969,-9940.44939196,0.00026838,2]
[379227978,1755198644979,-170.61855441,0.00026845,4]
[379227979,1755198644989,-415.30966174,0.00026845,4]
[379227980,1755198644998,-245.74346372,0.00026845,4]
[379227981,1755198645008,-150.0,0.00026849,4]
[379227982,1755198645018,-2081.85,0.00026849,14]
[379227983,1755198645029,-797.99,0.00026849,2]
[379227984,1755198645039,-377.68,0.00026849,2]
[379227985,1755198645048,-167.79431171,0.0002685,2]
[379227986,1755198645058,-150.0,0.00026853,4]
[379227987,1755198645068,-150.0,0.00026855,4]
[379227988,1755198645078,-150.0,0.00026857,4]
[379227989,1755198645087,-756.44377183,0.00026858,2]
[379227990,1755198645096,-153.86329635,0.00026859,2]
[379227991,1755198645107,-150.0,0.00026861,4]
[379227992,1755198645117,-150.0,0.00026862,4]
[379227993,1755198645127,-150.0,0.00026863,4]
[379227994,1755198645137,-170.61855441,0.00026872,4]
[379227995,1755198645147,-415.30966174,0.00026872,4]
[379227996,1755198645156,-245.74346372,0.00026872,4]
[379227997,1755198645167,-414.57250046,0.00026873,2]
[379227998,1755198645177,-877.68146115,0.00026876,2]
[379228000,1755198645187,-150.0,0.00026881,4]
[379228001,1755198645196,-150.0,0.00026881,4]
[379228002,1755198645205,-1075.20315016,0.00026884,10]
[379228003,1755198645215,-1075.20315016,0.00026884,10]
[379228004,1755198645225,-1000.0,0.00026884,2]